bitfinex-derivatives/quotes_BTCF0:USTF0_20251228
["timestamp","ask_amount","ask_price","bid_price","bid_amount"]
[1766900365282,0.0114099,87704.0,87689.0,0.0114118]
[1766900370282,0.05725101,87705.0,87691.0,0.0114115]
[1766900373985,0.05725101,87705.0,87693.0,0.0114112]
[1766900374886,0.02448421,87704.0,87693.0,0.0114112]
[1766900375186,0.05725101,87705.0,87693.0,0.0114112]
[1766900375388,0.02449437,87704.0,87693.0,0.0114112]
[1766900375684,0.02449467,87703.0,87693.0,0.0114112]
[1766900375985,0.05725101,87705.0,87693.0,0.0114112]
[1766900376175,0.02449468,87704.0,87693.0,0.0114112]
[1766900376374,0.02449468,87703.0,87693.0,0.0114112]
[1766900376571,0.05725101,87705.0,87693.0,0.0114112]
[1766900376783,0.02450441,87704.0,87693.0,0.0114112]
[1766900376984,0.02450441,87703.0,87693.0,0.0114112]
[1766900377185,0.05725101,87705.0,87693.0,0.0114112]
[1766900377389,0.02451486,87704.0,87693.0,0.0114112]
[1766900377686,0.02451486,87703.0,87693.0,0.0114112]
[1766900377887,0.05725101,87705.0,87693.0,0.0114112]
[1766900378089,0.02451486,87704.0,87693.0,0.0114112]
[1766900378387,0.02451486,87703.0,87693.0,0.0114112]
[1766900378687,0.05725101,87705.0,87693.0,0.0114112]
[1766900378888,0.02451595,87704.0,87693.0,0.0114112]
[1766900379083,0.02451595,87703.0,87693.0,0.0114112]
[1766900379284,0.02451722,87702.0,87693.0,0.0114112]
[1766900379484,0.05725101,87705.0,87693.0,0.0114112]
[1766900379683,0.02451721,87704.0,87693.0,0.0114112]
[1766900379888,0.02451721,87703.0,87693.0,0.0114112]
[1766900380080,0.02451721,87702.0,87693.0,0.0114112]
[1766900380279,0.05725101,87705.0,87693.0,0.0114112]
[1766900380481,0.02451735,87704.0,87693.0,0.0114112]
[1766900380680,0.02451735,87703.0,87693.0,0.0114112]
[1766900380876,0.02451735,87702.0,87693.0,0.0114112]
[1766900381181,0.05725101,87705.0,87693.0,0.0114112]
[1766900381382,0.02451739,87704.0,87693.0,0.0114112]
[1766900381579,0.02451739,87703.0,87695.0,0.011411]
[1766900381780,0.02451739,87702.0,87695.0,0.011411]
[1766900382083,0.05725101,87705.0,87695.0,0.011411]
[1766900382286,0.02451739,87704.0,87695.0,0.011411]
[1766900382476,0.02451739,87703.0,87695.0,0.011411]
[1766900382679,0.02451739,87702.0,87695.0,0.011411]
[1766900382880,0.05725101,87705.0,87695.0,0.011411]
[1766900383078,0.02451742,87704.0,87695.0,0.011411]
[1766900383276,0.02451742,87703.0,87695.0,0.011411]
[1766900383476,0.02451742,87702.0,87695.0,0.011411]
[1766900383688,0.05725101,87705.0,87695.0,0.011411]
[1766900383888,0.02451748,87704.0,87695.0,0.011411]
[1766900384082,0.02451748,87703.0,87695.0,0.011411]
[1766900384287,0.02451748,87702.0,87695.0,0.011411]
[1766900384488,0.097,87703.0,87695.0,0.011411]
[1766900384691,0.02451748,87702.0,87695.0,0.011411]
[1766900384892,0.097,87703.0,87695.0,0.011411]
[1766900385092,0.02451748,87702.0,87695.0,0.011411]
[1766900385292,0.097,87703.0,87695.0,0.011411]
[1766900385487,0.02451749,87702.0,87695.0,0.011411]
[1766900385700,0.11457935,87710.0,87702.0,0.0114102]
[1766900385888,0.15408,87709.0,87702.0,0.0114102]
[1766900387291,0.15408,87709.0,87699.0,0.0114105]
[1766900397595,0.02440572,87708.0,87699.0,0.0114105]
[1766900397790,0.02440572,87707.0,87699.0,0.0114105]
[1766900397996,0.02440572,87706.0,87699.0,0.0114105]
[1766900398196,0.02440572,87705.0,87699.0,0.0114105]
[1766900398397,0.08148572,87704.0,87699.0,0.0114105]
[1766900398595,0.05708,87704.0,87699.0,0.0114105]
[1766900398894,0.11457935,87712.0,87699.0,0.0114105]
[1766900399099,0.17848565,87711.0,87699.0,0.0114105]
[1766900399296,0.02440565,87710.0,87699.0,0.0114105]
[1766900401201,0.02440565,87710.0,87699.0,0.0054105]
[1766900401506,0.02440565,87710.0,87699.0,5e-07]
[1766900402498,0.17848565,87709.0,87699.0,5e-07]
[1766900402694,0.02440565,87708.0,87699.0,5e-07]
[1766900402904,0.02440565,87707.0,87699.0,5e-07]
[1766900403104,0.02440565,87706.0,87699.0,5e-07]
[1766900403403,0.02440565,87705.0,87699.0,5e-07]
[1766900403609,0.08148565,87704.0,87699.0,5e-07]
[1766900403799,0.05708,87704.0,87699.0,5e-07]
[1766900407005,0.15408,87704.0,87699.0,5e-07]
[1766900409303,0.05708,87703.0,87699.0,5e-07]
[1766900414618,0.11457935,87712.0,87699.0,5e-07]
[1766900414807,0.17839933,87711.0,87699.0,5e-07]
[1766900415115,0.02431933,87710.0,87699.0,5e-07]
[1766900415315,0.02431933,87709.0,87699.0,5e-07]
[1766900415518,0.02431933,87708.0,87699.0,5e-07]
[1766900415715,0.02431933,87707.0,87699.0,5e-07]
[1766900415919,0.05708,87706.0,87699.0,5e-07]
[1766900416124,0.02432092,87705.0,87699.0,5e-07]
[1766900416419,0.02432092,87704.0,87699.0,5e-07]
[1766900416719,0.02432092,87703.0,87699.0,5e-07]
[1766900416920,0.05708,87706.0,87699.0,5e-07]
[1766900417217,0.02432094,87705.0,87699.0,5e-07]
[1766900417419,0.08140094,87704.0,87699.0,5e-07]
[1766900417621,0.02432094,87703.0,87699.0,5e-07]
[1766900420223,0.05708,87702.0,87699.0,5e-07]
[1766900420523,0.11457935,87710.0,87699.0,5e-07]
[1766900420720,0.06145441,87719.0,87700.0,0.11457935]
[1766900420914,0.15408,87713.0,87702.0,0.0114101]
[1766900421120,0.05708,87712.0,87702.0,0.0114101]
[1766900421423,0.11457935,87720.0,87703.0,0.01141]
[1766900421614,0.15408,87719.0,87703.0,0.01141]
[1766900422017,0.15408,87719.0,87699.0,0.011411]
[1766900423426,0.0114081,87718.0,87699.0,0.011411]
[1766900424031,0.0114081,87718.0,87699.0,5e-07]
[1766900427328,0.0114081,87718.0,87700.0,0.0114104]
[1766900431529,0.0114081,87718.0,87700.0,0.12598975]
[1766900431937,0.0114081,87718.0,87700.0,0.0114104]
[1766900432136,0.02420188,87717.0,87700.0,0.12598975]
[1766900432336,0.02420188,87716.0,87700.0,0.0114104]
[1766900432535,0.02420188,87715.0,87700.0,0.0114104]
[1766900432731,0.02420188,87714.0,87700.0,0.0114104]
[1766900432926,0.02420188,87713.0,87700.0,0.0114104]
[1766900433229,0.02420188,87712.0,87700.0,0.0114104]
[1766900433431,0.15408,87719.0,87699.0,5e-07]
[1766900434036,0.11457935,87710.0,87699.0,5e-07]
[1766900435339,0.12598855,87710.0,87699.0,5e-07]
[1766900435829,0.02410668,87709.0,87699.0,5e-07]
[1766900436135,0.12598855,87710.0,87699.0,5e-07]
[1766900436136,0.02410668,87708.0,87699.0,5e-07]
[1766900436337,0.02410668,87707.0,87699.0,5e-07]
[1766900436638,0.12598855,87710.0,87699.0,5e-07]
[1766900436837,0.02410688,87709.0,87699.0,5e-07]
[1766900437040,0.02410688,87708.0,87699.0,5e-07]
[1766900437338,0.02410688,87707.0,87699.0,5e-07]
[1766900437638,0.12598855,87710.0,87699.0,5e-07]
[1766900437838,0.02410724,87709.0,87699.0,5e-07]
[1766900438040,0.02410724,87708.0,87699.0,5e-07]
[1766900438338,0.02410724,87707.0,87699.0,5e-07]
[1766900438540,0.05708,87712.0,87699.0,5e-07]
[1766900438741,0.02410755,87711.0,87699.0,5e-07]
[1766900439038,0.02410755,87710.0,87699.0,5e-07]
[1766900439240,0.02410755,87709.0,87699.0,5e-07]
[1766900439539,0.02410755,87708.0,87699.0,5e-07]
[1766900439740,0.02410755,87707.0,87699.0,5e-07]
[1766900439939,0.05708,87712.0,87699.0,5e-07]
[1766900440128,0.0241079,87711.0,87699.0,5e-07]
[1766900440331,0.0241079,87710.0,87699.0,5e-07]
[1766900440526,0.0241079,87709.0,87699.0,5e-07]
[1766900440731,0.0241079,87708.0,87699.0,5e-07]
[1766900440939,0.0241079,87707.0,87699.0,5e-07]
[1766900441140,0.05708,87712.0,87699.0,5e-07]
[1766900441342,0.02410832,87711.0,87699.0,5e-07]
[1766900441536,0.02410832,87710.0,87699.0,5e-07]
[1766900441835,0.02410832,87709.0,87699.0,5e-07]
[1766900442036,0.02410832,87708.0,87699.0,5e-07]
[1766900442239,0.02410832,87707.0,87699.0,5e-07]
[1766900442438,0.05708,87712.0,87699.0,5e-07]
[1766900442641,0.02410922,87711.0,87699.0,5e-07]
[1766900442830,0.02410922,87710.0,87699.0,5e-07]
[1766900443029,0.02410922,87709.0,87699.0,5e-07]
[1766900443235,0.02410922,87708.0,87702.0,0.0114101]
[1766900443538,0.02410922,87707.0,87702.0,0.0114101]
[1766900443741,0.05708,87712.0,87699.0,0.011411]
[1766900443939,0.02410981,87711.0,87699.0,0.011411]
[1766900444140,0.02410981,87710.0,87699.0,0.011411]
[1766900444440,0.02410981,87709.0,87699.0,0.011411]
[1766900444638,0.02410981,87708.0,87699.0,0.011411]
[1766900444944,0.02410981,87707.0,87699.0,0.011411]
[1766900445143,0.05708,87712.0,87699.0,0.011411]
[1766900445345,0.02411039,87711.0,87699.0,0.011411]
[1766900445541,0.02411039,87710.0,87699.0,0.011411]
[1766900445840,0.02411039,87709.0,87699.0,0.011411]
[1766900446041,0.02411039,87708.0,87699.0,0.011411]
[1766900446238,0.02411039,87707.0,87699.0,0.011411]
[1766900446432,0.05708,87712.0,87699.0,0.011411]
[1766900446632,0.02411179,87711.0,87699.0,0.011411]
[1766900446843,0.02411179,87710.0,87701.0,0.0114102]
[1766900447044,0.02411179,87709.0,87701.0,0.0114102]
[1766900447342,0.02411179,87708.0,87701.0,0.0114102]
[1766900447544,0.02411179,87707.0,87701.0,0.0114102]
[1766900447743,0.05708,87712.0,87701.0,0.0114102]
[1766900447945,0.02411265,87711.0,87701.0,0.0114102]
[1766900448143,0.02411265,87710.0,87701.0,0.0114102]
[1766900448344,0.02411265,87709.0,87701.0,0.0114102]
[1766900448543,0.02411265,87708.0,87701.0,0.0114102]
[1766900448747,0.02411265,87707.0,87701.0,0.0114102]
[1766900448948,0.05708,87712.0,87701.0,0.0114102]
[1766900449244,0.02411367,87711.0,87701.0,0.0114102]
[1766900449453,0.02411367,87710.0,87701.0,0.0114102]
[1766900449645,0.02411367,87709.0,87701.0,0.0114102]
[1766900449836,0.02411367,87708.0,87701.0,0.0114102]
[1766900450034,0.02411367,87707.0,87701.0,0.0114102]
[1766900450237,0.05708,87712.0,87701.0,0.0114102]
[1766900450445,0.02411633,87711.0,87701.0,0.0114102]
[1766900450647,0.02411633,87710.0,87701.0,0.0114102]
[1766900450947,0.02411633,87709.0,87701.0,0.0114102]
[1766900451143,0.02411633,87708.0,87701.0,0.0114102]
[1766900451441,0.02411633,87707.0,87701.0,0.0114102]
[1766900451642,0.05708,87712.0,87701.0,0.0114102]
[1766900451842,0.02411644,87711.0,87701.0,0.0114102]
[1766900452143,0.02411644,87710.0,87701.0,0.0114102]
[1766900452441,0.02411644,87709.0,87701.0,0.0114102]
[1766900452644,0.02411644,87708.0,87701.0,0.0114102]
[1766900452842,0.02411644,87707.0,87701.0,0.0114102]
[1766900453043,0.05708,87712.0,87701.0,0.0114102]
[1766900453243,0.02411656,87711.0,87701.0,0.0114102]
[1766900453438,0.02411656,87710.0,87701.0,0.0114102]
[1766900453646,0.02411656,87709.0,87701.0,0.0114102]
[1766900453846,0.02411656,87708.0,87701.0,0.0114102]
[1766900454046,0.02411656,87707.0,87701.0,0.0114102]
[1766900454352,0.05708,87712.0,87701.0,0.0114102]
[1766900454353,0.02411656,87706.0,87701.0,0.0114102]
[1766900454549,0.05708,87712.0,87701.0,0.0114102]
[1766900454849,0.02411689,87711.0,87701.0,0.0114102]
[1766900455048,0.05708,87712.0,87701.0,0.0114102]
[1766900455049,0.02411689,87710.0,87701.0,0.0114102]
[1766900455251,0.05708,87712.0,87701.0,0.0114102]
[1766900455252,0.02411689,87709.0,87701.0,0.0114102]
[1766900455550,0.02411689,87708.0,87701.0,0.0114102]
[1766900455748,0.02411689,87707.0,87701.0,0.0114102]
[1766900455947,9e-08,87706.0,87703.0,0.01141]
[1766900456147,0.05708,87712.0,87703.0,0.01141]
[1766900457050,0.05708,87712.0,87706.0,0.0114097]
[1766900457452,0.05708,87712.0,87703.0,0.01141]
[1766900458453,0.00017101,87720.0,87703.0,0.01141]
[1766900458652,0.15408,87719.0,87703.0,0.01141]
[1766900460353,0.15408,87719.0,87705.0,0.0114097]
[1766900461052,0.00017101,87720.0,87705.0,0.0114097]
[1766900461258,0.15408,87719.0,87699.0,5e-07]
[1766900461457,0.15408,87719.0,87713.0,0.0114087]
[1766900464669,0.0114066,87730.0,87713.0,0.0114087]
[1766900464866,0.15408,87729.0,87713.0,0.0114087]
[1766900465069,0.05708,87728.0,87713.0,0.0114087]
[1766900465275,0.15408,87728.0,87713.0,0.0114087]
[1766900467269,0.00017101,87729.0,87713.0,0.0114087]
[1766900467575,0.15408,87728.0,87713.0,0.0114087]
[1766900467968,0.02402889,87727.0,87713.0,0.0114087]
[1766900468168,0.15408,87728.0,87713.0,0.0114087]
[1766900468169,0.02402889,87726.0,87713.0,0.0114087]
[1766900468375,0.02402889,87725.0,87713.0,0.0114087]
[1766900468676,0.02402889,87724.0,87713.0,0.0114087]
[1766900468877,0.02402889,87723.0,87713.0,0.0114087]
[1766900469173,0.08110889,87722.0,87713.0,0.0114087]
[1766900469374,0.08110889,87722.0,87707.0,0.00017101]
[1766900469375,0.02402889,87721.0,87709.0,0.0114091]
[1766900469574,0.05708,87722.0,87709.0,0.0114091]
[1766900469874,0.02402531,87721.0,87709.0,0.0114091]
[1766900470073,0.05708,87722.0,87709.0,0.0114091]
[1766900470275,0.0240253,87721.0,87709.0,0.0114091]
[1766900470476,0.05708,87720.0,87709.0,0.0114091]
[1766900470667,0.0114068,87728.0,87709.0,0.0114091]
[1766900470863,0.17810403,87727.0,87709.0,0.0114091]
[1766900471066,0.02402403,87726.0,87709.0,0.0114091]
[1766900471267,0.02402403,87725.0,87709.0,0.0114091]
[1766900471467,0.02402403,87724.0,87709.0,0.0114091]
[1766900471675,0.02402403,87723.0,87709.0,0.0114091]
[1766900471876,0.02402403,87722.0,87709.0,0.0114091]
[1766900472072,0.02402403,87721.0,87709.0,0.0114091]
[1766900472272,0.05708,87720.0,87709.0,0.0114091]
[1766900480883,0.05708,87720.0,87711.0,0.011409]
[1766900482383,0.05708,87720.0,87713.0,0.0114087]
[1766900490986,0.00017101,87729.0,87713.0,0.0114087]
[1766900491186,0.17809365,87728.0,87713.0,0.0114087]
[1766900491488,0.02405365,87727.0,87713.0,0.0114087]
[1766900491683,0.08113365,87726.0,87713.0,0.0114087]
[1766900491891,0.02405365,87725.0,87713.0,0.0114087]
[1766900492089,0.15404,87726.0,87713.0,0.0114087]
[1766900492090,0.02405365,87724.0,87713.0,0.0114087]
[1766900492289,0.02405365,87723.0,87713.0,0.0114087]
[1766900492492,0.02405365,87722.0,87713.0,0.0114087]
[1766900492692,0.05708,87721.0,87715.0,0.0114084]
[1766900493992,0.05708,87721.0,87712.0,0.0114088]
[1766900500193,0.00017101,87729.0,87712.0,0.0114088]
[1766900500491,0.15404,87728.0,87712.0,0.0114088]
[1766900502187,0.15404,87728.0,87714.0,0.0114086]
[1766900503589,0.00017101,87729.0,87714.0,0.0114086]
[1766900503785,0.05708,87728.0,87716.0,0.0114083]
[1766900505295,0.00017101,87729.0,87718.0,0.011408]
[1766900505495,0.05708,87727.0,87718.0,0.011408]
[1766900505788,0.00017101,87729.0,87718.0,0.011408]
[1766900505992,0.00017101,87729.0,87717.0,0.11450223]
[1766900505993,0.05708,87728.0,87717.0,0.11450223]
[1766900506189,0.05708,87728.0,87708.0,0.0114093]
[1766900506190,0.05162819,87728.0,87718.0,0.11450223]
[1766900506392,0.05162819,87728.0,87722.0,0.0114075]
[1766900506693,0.09696,87729.0,87722.0,0.0114075]
[1766900506694,0.05708,87727.0,87722.0,0.0114075]
[1766900508494,0.00017101,87733.0,87724.0,0.0114072]
[1766900509994,1e-08,87733.0,87723.0,0.11450223]
[1766900510295,0.05708,87732.0,87724.0,0.0114073]
[1766900510601,0.05708,87731.0,87727.0,0.0114069]
[1766900511302,0.05708,87730.0,87727.0,0.0114069]
[1766900511797,1e-08,87733.0,87727.0,0.0114069]
[1766900512003,0.05708,87732.0,87727.0,0.0114069]
[1766900513401,0.05708,87731.0,87727.0,0.0114069]
[1766900514315,0.05708,87731.0,87724.0,0.0114073]
[1766900520804,0.05708,87731.0,87720.0,0.0114077]
[1766900521108,0.0114069,87728.0,87720.0,3e-08]
[1766900521307,0.0114069,87728.0,87712.0,0.09096]
[1766900521510,0.0114071,87726.0,87707.0,0.00017101]
[1766900521708,0.05708,87725.0,87710.0,0.10850223]
[1766900522008,0.05708,87725.0,87710.0,0.11450223]
[1766900523507,0.05708,87725.0,87710.0,0.12591133]
[1766900528115,0.05708,87725.0,87712.0,0.0114088]
[1766900529726,0.05708,87725.0,87714.0,0.0114086]
[1766900532627,0.09696,87724.0,87707.0,0.00017101]
[1766900532831,0.12591003,87720.0,87707.0,1.01e-06]
[1766900535435,0.11450223,87720.0,87707.0,1.01e-06]
[1766900536337,0.05708,87719.0,87707.0,1.01e-06]
[1766900541434,0.05708,87719.0,87707.0,0.01141051]
[1766900545047,0.05708,87719.0,87709.0,0.0114092]
[1766900546039,0.05708,87718.0,87709.0,0.0114092]
[1766900546239,0.0114069,87728.0,87709.0,0.0114092]
[1766900546439,0.02422375,87727.0,87709.0,0.0114092]
[1766900546748,0.17826375,87726.0,87709.0,0.0114092]
[1766900547047,0.02422375,87725.0,87709.0,0.0114092]
[1766900547945,0.17830375,87724.0,87709.0,0.0114092]
[1766900548244,0.02422375,87723.0,87709.0,0.0114092]
[1766900548436,0.15408,87722.0,87709.0,0.0114092]
[1766900548641,0.02422375,87721.0,87709.0,0.0114092]
[1766900550848,0.08130375,87720.0,87709.0,0.0114092]
[1766900551148,0.05708,87720.0,87709.0,0.0114092]
[1766900551751,0.11450223,87730.0,87711.0,0.0114089]
[1766900552053,0.18971967,87729.0,87711.0,0.0114089]
[1766900552348,0.02423297,87728.0,87711.0,0.0114089]
[1766900552649,0.05708,87727.0,87711.0,0.0114089]
[1766900552850,0.12123297,87726.0,87711.0,0.0114089]
[1766900553052,0.02423297,87725.0,87711.0,0.0114089]
[1766900555150,0.17831297,87724.0,87711.0,0.0114089]
[1766900555452,0.02423297,87723.0,87711.0,0.0114089]
[1766900555652,0.17831297,87722.0,87711.0,0.0114089]
[1766900555852,0.02423297,87721.0,87711.0,0.0114089]
[1766900556048,0.15408,87722.0,87711.0,0.0114089]
[1766900556248,0.02411448,87721.0,87711.0,0.0114089]
[1766900556446,0.02411448,87720.0,87711.0,0.0114089]
[1766900556652,0.0114067,87729.0,87711.0,0.0114089]
[1766900556854,0.17819557,87728.0,87711.0,0.0114089]
[1766900557049,0.02411557,87727.0,87711.0,0.0114089]
[1766900557250,0.02411557,87726.0,87711.0,0.0114089]
[1766900557548,0.02411557,87725.0,87711.0,0.0114089]
[1766900557753,0.02411557,87724.0,87711.0,0.0114089]
[1766900557949,0.02411557,87723.0,87711.0,0.0114089]
[1766900558156,0.08119557,87722.0,87711.0,0.0114089]
[1766900558454,0.02411557,87721.0,87711.0,0.0114089]
[1766900559150,0.08119557,87720.0,87711.0,0.0114089]
[1766900559454,0.05708,87720.0,87711.0,0.0114089]
[1766900560758,0.05708,87719.0,87711.0,0.0114089]
[1766900561962,0.11450223,87730.0,87710.0,0.11450223]
[1766900562160,0.02412591,87729.0,87710.0,0.11450223]
[1766900562460,0.17820591,87728.0,87710.0,0.11450223]
[1766900562660,0.02412591,87727.0,87710.0,0.11450223]
[1766900563155,0.02412591,87727.0,87714.0,0.0114085]
[1766900566560,0.05708,87726.0,87714.0,0.0114085]
[1766900566759,0.12112591,87725.0,87714.0,0.0114085]
[1766900567061,0.02412591,87724.0,87714.0,0.0114085]
[1766900567262,0.02412591,87724.0,87717.0,0.0114082]
[1766900570358,0.05708,87723.0,87717.0,0.0114082]
[1766900572166,0.0241273,87722.0,87717.0,0.0114082]
[1766900572464,0.05708,87723.0,87717.0,0.0114082]
[1766900572664,0.02412705,87722.0,87717.0,0.0114082]
[1766900572860,0.05708,87723.0,87717.0,0.0114082]
[1766900573061,0.02412705,87722.0,87717.0,0.0114082]
[1766900573261,0.05708,87723.0,87717.0,0.0114082]
[1766900573467,0.02412687,87722.0,87717.0,0.0114082]
[1766900573764,0.05708,87723.0,87717.0,0.0114082]
[1766900573953,0.09696,87727.0,87719.0,0.0114079]
[1766900574161,0.05708,87726.0,87719.0,0.0114079]
[1766900574466,0.09696,87727.0,87719.0,0.0114079]
[1766900574467,0.05708,87725.0,87719.0,0.0114079]
[1766900575462,0.01310858,87736.0,87719.0,0.0114079]
[1766900575666,0.15404,87732.0,87719.0,0.0114079]
[1766900576560,0.15404,87732.0,87716.0,0.0114083]
[1766900577457,0.0114064,87731.0,87713.0,0.0114087]
[1766900578257,0.0114067,87729.0,87710.0,0.0114091]
[1766900578864,0.0114067,87729.0,87712.0,0.0114088]
[1766900579270,0.15404,87732.0,87716.0,0.0114083]
[1766900581472,0.15404,87732.0,87718.0,0.011408]
[1766900583366,0.15404,87732.0,87715.0,0.0114085]
[1766900583660,0.15404,87732.0,87707.0,0.13802317]
[1766900583661,0.15404,87732.0,87717.0,0.0114081]
[1766900583970,0.15404,87732.0,87719.0,0.0114079]
[1766900585473,0.15404,87732.0,87717.0,0.0114081]
[1766900586767,0.05708,87731.0,87717.0,0.0114081]
[1766900589675,0.05708,87731.0,87710.0,0.04106216]
[1766900589676,0.05708,87731.0,87719.0,0.0114079]
[1766900591988,0.05708,87731.0,87716.0,0.0114083]
[1766900592170,0.05708,87731.0,87713.0,0.0114087]
[1766900597276,0.05708,87731.0,87717.0,0.0114082]
[1766900604481,0.05708,87730.0,87717.0,0.0114082]
[1766900604886,1e-08,87733.0,87717.0,0.0114082]
[1766900605085,0.05708,87729.0,87717.0,0.0114082]
[1766900606790,0.05708,87729.0,87719.0,0.0114079]
[1766900610191,1e-08,87733.0,87719.0,0.0114079]
[1766900610390,0.05708,87732.0,87719.0,0.0114079]
[1766900613491,0.02407385,87731.0,87719.0,0.0114079]
[1766900613693,0.02407385,87730.0,87719.0,0.0114079]
[1766900613891,0.02407385,87729.0,87719.0,0.0114079]
[1766900614192,0.02407385,87728.0,87719.0,0.0114079]
[1766900614381,0.02407385,87727.0,87719.0,0.0114079]
[1766900614584,0.02407385,87726.0,87719.0,0.0114079]
[1766900614787,0.05708,87732.0,87719.0,0.0114079]
[1766900614985,0.02407448,87731.0,87719.0,0.0114079]
[1766900615193,0.02407448,87730.0,87719.0,0.0114079]
[1766900615393,0.02407448,87729.0,87719.0,0.0114079]
[1766900615595,0.02407448,87728.0,87719.0,0.0114079]
[1766900615894,0.02407448,87727.0,87719.0,0.0114079]
[1766900616194,0.02407448,87726.0,87719.0,0.0114079]
[1766900616395,0.05708,87732.0,87719.0,0.0114079]
[1766900616596,0.02407445,87731.0,87719.0,0.0114079]
[1766900616790,0.02407445,87730.0,87719.0,0.0114079]
[1766900617093,0.02407445,87729.0,87719.0,0.0114079]
[1766900617292,0.02407445,87728.0,87719.0,0.0114079]
[1766900617492,0.02407445,87727.0,87719.0,0.0114079]
[1766900617691,0.02407445,87726.0,87719.0,0.0114079]
[1766900617894,0.05708,87732.0,87719.0,0.0114079]
[1766900618095,0.02407453,87731.0,87719.0,0.0114079]
[1766900618293,0.02407453,87730.0,87719.0,0.0114079]
[1766900618595,0.02407453,87729.0,87719.0,0.0114079]
[1766900618796,0.02407453,87728.0,87719.0,0.0114079]
[1766900618991,0.02407453,87727.0,87719.0,0.0114079]
[1766900619191,0.02407453,87726.0,87719.0,0.0114079]
[1766900619392,0.05708,87732.0,87719.0,0.0114079]
[1766900619592,0.02407447,87731.0,87719.0,0.0114079]
[1766900619793,0.02407447,87730.0,87719.0,0.0114079]
[1766900619993,0.02407447,87729.0,87719.0,0.0114079]
[1766900620198,0.02407447,87728.0,87719.0,0.0114079]
[1766900620397,0.02407447,87727.0,87719.0,0.0114079]
[1766900620696,0.02407447,87726.0,87719.0,0.0114079]
[1766900620890,0.05708,87732.0,87719.0,0.0114079]
[1766900621090,0.02407445,87731.0,87719.0,0.0114079]
[1766900621291,0.02407445,87730.0,87719.0,0.0114079]
[1766900621487,0.02407445,87729.0,87719.0,0.0114079]
[1766900621692,0.02407445,87728.0,87719.0,0.0114079]
[1766900621895,0.02407445,87727.0,87719.0,0.0114079]
[1766900622096,0.02407445,87726.0,87719.0,0.0114079]
[1766900622300,0.05708,87732.0,87719.0,0.0114079]
[1766900622501,0.02407444,87731.0,87719.0,0.0114079]
[1766900622700,0.02407444,87730.0,87719.0,0.0114079]
[1766900623000,0.02407444,87729.0,87719.0,0.0114079]
[1766900623196,0.02407444,87728.0,87719.0,0.0114079]
[1766900623397,0.02407444,87727.0,87719.0,0.0114079]
[1766900623695,0.02407444,87726.0,87719.0,0.0114079]
[1766900623896,0.05708,87732.0,87719.0,0.0114079]
[1766900624096,0.02407443,87731.0,87719.0,0.0114079]
[1766900624296,0.02407443,87730.0,87719.0,0.0114079]
[1766900624492,0.02407443,87729.0,87719.0,0.0114079]
[1766900624796,0.02407443,87728.0,87719.0,0.0114079]
[1766900624996,0.02407443,87727.0,87719.0,0.0114079]
[1766900625198,0.02407443,87726.0,87719.0,0.0114079]
[1766900625395,0.05708,87732.0,87719.0,0.0114079]
[1766900625596,0.02407443,87731.0,87719.0,0.0114079]
[1766900625793,0.02407443,87730.0,87719.0,0.0114079]
[1766900625993,0.02407443,87729.0,87719.0,0.0114079]
[1766900626200,0.02407443,87728.0,87719.0,0.0114079]
[1766900626400,0.02407443,87727.0,87719.0,0.0114079]
[1766900626602,0.02407443,87726.0,87719.0,0.0114079]
[1766900626802,0.05708,87732.0,87719.0,0.0114079]
[1766900627000,0.0240745,87731.0,87719.0,0.0114079]
[1766900627193,0.0240745,87730.0,87719.0,0.0114079]
[1766900627395,0.0240745,87729.0,87719.0,0.0114079]
[1766900627596,0.0240745,87728.0,87719.0,0.0114079]
[1766900627797,0.0240745,87727.0,87719.0,0.0114079]
[1766900627994,0.0240745,87726.0,87719.0,0.0114079]
[1766900628203,0.05708,87732.0,87719.0,0.0114079]
[1766900628405,0.02407448,87731.0,87719.0,0.0114079]
[1766900628597,0.02407448,87730.0,87719.0,0.0114079]
[1766900628798,0.02407448,87729.0,87719.0,0.0114079]
[1766900628997,0.02407448,87728.0,87719.0,0.0114079]
[1766900629197,0.02407448,87727.0,87719.0,0.0114079]
[1766900629397,0.02407448,87726.0,87719.0,0.0114079]
[1766900629597,0.05708,87732.0,87719.0,0.0114079]
[1766900629897,0.02407447,87731.0,87719.0,0.0114079]
[1766900630099,0.02407447,87730.0,87719.0,0.0114079]
[1766900630298,0.02407447,87729.0,87719.0,0.0114079]
[1766900630604,0.02407447,87728.0,87719.0,0.0114079]
[1766900630805,0.02407447,87727.0,87719.0,0.0114079]
[1766900630999,0.02407447,87726.0,87719.0,0.0114079]
[1766900631305,0.05708,87732.0,87719.0,0.0114079]
[1766900631504,0.02407432,87731.0,87719.0,0.0114079]
[1766900631704,0.02407432,87730.0,87719.0,0.0114079]
[1766900631905,0.02407432,87729.0,87719.0,0.0114079]
[1766900632105,0.02407432,87728.0,87719.0,0.0114079]
[1766900632405,0.02407432,87727.0,87719.0,0.0114079]
[1766900632606,0.02407432,87726.0,87719.0,0.0114079]
[1766900632808,0.05708,87732.0,87719.0,0.0114079]
[1766900633107,0.02407423,87731.0,87719.0,0.0114079]
[1766900633302,0.02407423,87730.0,87719.0,0.0114079]
[1766900633502,0.02407423,87729.0,87719.0,0.0114079]
[1766900633703,0.02407423,87728.0,87719.0,0.0114079]
[1766900633903,0.02407423,87727.0,87719.0,0.0114079]
[1766900634109,0.02407423,87726.0,87719.0,0.0114079]
[1766900634408,0.05708,87732.0,87719.0,0.0114079]
[1766900634603,0.024074,87731.0,87719.0,0.0114079]
[1766900634803,0.024074,87730.0,87719.0,0.0114079]
[1766900635008,0.024074,87729.0,87719.0,0.0114079]
[1766900635201,0.024074,87728.0,87719.0,0.0114079]
[1766900635402,0.024074,87727.0,87719.0,0.0114079]
[1766900635602,0.024074,87726.0,87719.0,0.0114079]
[1766900635805,0.05708,87732.0,87719.0,0.0114079]
[1766900636003,0.02407392,87731.0,87719.0,0.0114079]
[1766900636303,0.02407392,87730.0,87719.0,0.0114079]
[1766900636605,0.02407392,87729.0,87719.0,0.0114079]
[1766900636806,0.02407392,87728.0,87719.0,0.0114079]
[1766900637016,0.02407392,87727.0,87719.0,0.0114079]
[1766900637203,0.02407392,87726.0,87719.0,0.0114079]
[1766900637403,0.05708,87732.0,87719.0,0.0114079]
[1766900637601,0.02407379,87731.0,87719.0,0.0114079]
[1766900637806,0.02407379,87730.0,87719.0,0.0114079]
[1766900638108,0.02407379,87729.0,87719.0,0.0114079]
[1766900638306,0.02407379,87728.0,87719.0,0.0114079]
[1766900638507,0.02407379,87727.0,87719.0,0.0114079]
[1766900638804,0.02407379,87726.0,87719.0,0.0114079]
[1766900639006,0.05708,87732.0,87719.0,0.0114079]
[1766900639207,0.02407372,87731.0,87719.0,0.0114079]